bitfinex-derivatives/quotes_ETHF0:USTF0_20241104
["timestamp","ask_amount","ask_price","bid_price","bid_amount"]
[1730710882508,0.40654,2461.9,2461.6,0.40658]
[1730710882704,0.40654,2461.9,2461.7,0.40656]
[1730710883120,0.4216,2462.0,2461.5,1.0165]
[1730710883323,0.40649,2462.2,2461.9,0.40652]
[1730710883610,5.41492,2462.5,2461.8,0.4214]
[1730710883611,0.40648,2462.3,2461.8,0.4214]
[1730710884118,0.40649,2462.2,2462.0,0.40651]
[1730710884308,0.4216,2462.4,2461.8,0.4214]
[1730710884514,3.6294,2462.4,2461.9,0.40653]
[1730710884812,3.6143,2462.1,2461.9,0.40653]
[1730710885006,3.6143,2462.1,2461.8,0.4214]
[1730710885007,0.40652,2462.0,2461.8,0.82794]
[1730710885220,6.38253003,2462.1,2461.6,0.4634]
[1730710885415,0.40656,2461.7,2461.6,0.4634]
[1730710885617,0.4066,2461.5,2461.4,3.2078]
[1730710886116,0.8907,2461.6,2461.5,0.4066]
[1730710886309,0.86545,2461.9,2461.7,0.40656]
[1730710886514,0.40655,2461.8,2461.7,0.40656]
[1730710886715,0.886,2461.9,2461.8,0.40655]
[1730710886913,1.01608,2462.6,2462.0,0.40651]
[1730710886914,0.427,2462.2,2462.0,0.40651]
[1730710887112,3.6143,2462.1,2461.6,1.45065]
[1730710887513,3.2078,2462.1,2462.0,0.40651]
[1730710887707,3.2078,2462.1,2461.6,1.45065]
[1730710888013,0.427,2462.2,2462.1,0.4065]
[1730710888907,0.83348,2462.2,2462.1,0.4065]
[1730710889106,0.40651,2462.1,2461.9,0.40652]
[1730710889307,0.40651,2462.1,2461.7,0.463]
[1730710889308,6.38253003,2462.1,2461.7,0.463]
[1730710889520,0.40653,2462.0,2461.8,0.40654]
[1730710889711,6.38253003,2462.1,2461.7,0.86955]
[1730710889911,0.40655,2461.8,2461.7,0.86955]
[1730710890113,0.87074,2461.9,2461.7,0.86955]
[1730710890307,0.87074,2461.9,2461.8,0.40655]
[1730710890516,3.63893003,2461.9,2461.3,4.26916245]
[1730710890724,0.40657,2461.7,2461.6,0.40657]
[1730710890924,0.84895,2461.8,2461.4,0.4373]
[1730710891221,0.87074,2461.9,2461.4,1.45384]
[1730710891422,0.87074,2461.9,2461.8,0.40655]
[1730710891622,0.40655,2461.8,2461.7,0.40656]
[1730710892218,0.4642,2461.9,2461.6,0.40657]
[1730710892219,0.40656,2461.7,2461.6,0.40657]
[1730710892617,0.40656,2461.8,2461.6,0.40657]
[1730710893120,3.63893003,2461.9,2461.4,0.8439]
[1730710893324,0.4066,2461.5,2461.4,0.8439]
[1730710893518,0.4536,2461.7,2461.3,3.2078]
[1730710893519,0.40661,2461.4,2461.3,3.2078]
[1730710893823,1.29121,2461.4,2461.3,3.2078]
[1730710897313,0.4211,2461.4,2461.3,3.61443]
[1730710897518,3.17473003,2461.6,2461.4,0.4066]
[1730710897519,0.4066,2461.5,2461.4,0.4066]
[1730710898520,0.4066,2461.5,2461.4,0.40661]
[1730710898721,0.4066,2461.5,2461.4,0.83041]
[1730710899821,0.4536,2461.7,2461.4,0.4238]
[1730710900128,0.4536,2461.7,2461.4,0.8304]
[1730710900129,0.4066,2461.5,2461.4,0.8304]
[1730710900521,0.40659,2461.6,2461.5,0.40658]
[1730710900825,0.40659,2461.6,2461.5,0.853]
[1730710901218,0.40659,2461.6,2461.5,0.4464]
[1730710901624,3.61439,2461.6,2461.5,0.4464]
[1730710902022,3.61439,2461.6,2461.5,0.853]
[1730710902323,3.61439,2461.6,2461.5,0.4464]
[1730710902826,3.61439,2461.6,2461.5,0.853]
[1730710903222,0.40659,2461.6,2461.5,0.853]
[1730710904332,3.61439,2461.6,2461.5,0.4464]
[1730710904533,3.2078,2461.6,2460.9,1.01671]
[1730710904717,0.40662,2461.4,2461.3,0.40662]
[1730710905227,0.40661,2461.5,2461.4,0.4066]
[1730710905623,0.40659,2461.6,2461.5,0.40659]
[1730710907128,0.4066,2461.5,2461.4,0.8444]
[1730710909328,0.4066,2461.6,2461.5,0.40659]
[1730710913625,4.67782,2461.7,2461.3,0.439]
[1730710913929,0.40661,2461.5,2461.4,0.4066]
[1730710914426,0.40661,2461.4,2461.3,0.84562]
[1730710914622,0.4205,2461.4,2461.3,0.84562]
[1730710914823,0.82711,2461.4,2461.3,0.84562]
[1730710915218,0.82711,2461.4,2461.1,0.903]
[1730710915219,0.4205,2461.4,2461.1,0.4457]
[1730710915421,0.40664,2461.3,2461.2,0.40663]
[1730710915826,0.40665,2461.2,2461.1,0.85235]
[1730710916032,0.40665,2461.2,2461.1,0.40665]
[1730710916437,4.0632,2461.2,2460.6,5.28602245]
[1730710916632,0.4067,2461.0,2460.9,0.40668]
[1730710917631,0.40671,2460.8,2460.7,1.31172]
[1730710917825,0.40671,2460.8,2460.7,0.40672]
[1730710918134,1.33171,2460.9,2460.8,0.40671]
[1730710919433,0.87171,2460.9,2460.8,0.40671]
[1730710919935,0.4651,2461.3,2461.1,0.40666]
[1730710920131,0.87174,2461.3,2461.2,0.40665]
[1730710920437,0.9155,2461.4,2461.2,0.40665]
[1730710920733,0.9155,2461.4,2461.3,0.40663]
[1730710920930,0.4066,2461.5,2461.4,0.40661]
[1730710921137,7.39882003,2462.1,2461.3,1.01658]
[1730710921336,3.2078,2462.1,2461.5,3.2078]
[1730710921635,1.3228,2462.2,2461.6,1.45213]
[1730710921835,0.4065,2462.1,2462.0,0.4065]
[1730710922226,1.3228,2462.2,2461.6,1.45213]
[1730710922441,0.40653,2462.0,2461.6,1.45213]
[1730710922640,6.38253003,2462.1,2461.4,0.8928]
[1730710922831,6.38253003,2462.1,2461.5,0.40659]
[1730710922832,0.40658,2461.6,2461.5,0.40659]
[1730710923031,6.38253003,2462.1,2461.4,0.8928]
[1730710923032,3.17473003,2461.9,2461.4,0.8928]
[1730710923226,4.19110003,2461.9,2461.5,0.40659]
[1730710923431,0.40658,2461.6,2461.5,0.40659]
[1730710923641,3.17473003,2461.7,2461.4,0.4525]
[1730710923952,3.17473003,2461.7,2461.3,0.40662]
[1730710923953,0.40662,2461.4,2461.3,0.40662]
[1730710924142,0.40663,2461.4,2461.3,0.40662]
[1730710924641,0.40663,2461.4,2461.1,3.61446]
[1730710924642,0.40665,2461.2,2461.1,3.61446]
[1730710924831,0.40664,2461.3,2461.2,0.40663]
[1730710925032,0.40664,2461.3,2461.1,3.2078]
[1730710925033,0.4336,2461.6,2461.1,3.2078]
[1730710925231,0.4336,2461.6,2461.4,0.4066]
[1730710925232,0.40661,2461.5,2461.4,0.4066]
[1730710926035,0.4191,2461.8,2461.3,0.9124]
[1730710926233,0.4191,2461.8,2461.4,0.40659]
[1730710926234,0.40661,2461.5,2461.4,0.40659]
[1730710926945,0.4066,2461.5,2461.4,0.4066]
[1730710927240,3.6269,2461.8,2461.3,0.464]
[1730710927438,0.4066,2461.5,2461.4,0.4066]
[1730710928341,0.4066,2461.5,2461.1,3.2078]
[1730710928342,3.2078,2461.5,2461.1,3.2078]
[1730710928543,0.40664,2461.3,2461.2,0.40664]
[1730710928938,1.3042,2461.4,2461.1,3.61445]
[1730710928939,0.40665,2461.2,2461.1,3.61445]
[1730710929139,3.2078,2461.2,2460.7,1.49186245]
[1730710929342,3.61445,2461.2,2461.1,0.40666]
[1730710929647,0.40667,2461.1,2461.0,0.40667]
[1730710929843,3.2078,2461.2,2461.0,0.40667]
[1730710930146,3.2078,2461.2,2461.1,0.40666]
[1730710930340,0.40664,2461.3,2460.9,1.01674]
[1730710930646,0.40664,2461.3,2461.1,0.40665]
[1730710930647,3.2078,2461.2,2461.1,0.40665]
[1730710930842,3.61445,2461.2,2461.1,0.40665]
[1730710931234,0.40665,2461.2,2461.1,0.40665]
[1730710932340,3.61445,2461.3,2461.2,0.40665]
[1730710932545,0.40665,2461.3,2461.2,0.40665]
[1730710932844,7.271,2461.3,2460.8,1.01679]
[1730710933049,0.40668,2461.1,2461.0,0.40667]
[1730710933246,3.2078,2461.3,2460.7,0.4343]
[1730710933437,1.31428,2461.0,2460.7,1.45113]
[1730710933642,0.9076,2461.0,2460.9,0.4067]
[1730710933944,1.31428,2461.0,2460.9,0.4067]
[1730710934142,0.9076,2461.0,2460.9,0.4067]
[1730710934543,1.31428,2461.0,2460.9,0.4067]
[1730710934845,0.9076,2461.0,2460.9,0.4067]
[1730710935948,0.4448,2461.0,2460.9,0.4067]
[1730710936151,0.85476,2461.2,2461.1,0.40666]
[1730710936341,1.28196,2461.2,2461.1,0.40666]
[1730710937139,3.2078,2461.3,2461.2,0.40665]
[1730710937545,3.61443,2461.3,2461.2,0.40665]
[1730710939850,7.271,2461.3,2460.7,2.07818245]
[1730710940057,0.40668,2461.1,2461.0,0.40667]
[1730710940555,4.46988,2461.1,2461.0,0.40667]
[1730710941652,4.46987,2461.1,2461.0,0.40668]
[1730710942553,7.67767,2461.1,2461.0,0.40668]
[1730710943057,3.2078,2461.1,2461.0,0.40668]
[1730710944357,3.61446,2461.1,2461.0,0.40668]
[1730710944550,4.48996,2461.1,2461.0,0.40668]
[1730710945460,4.0833,2461.1,2461.0,0.40668]
[1730710945855,0.4215,2461.4,2461.0,4.46988]
[1730710946058,3.61437,2461.7,2461.6,0.40658]
[1730710946475,3.2078,2461.7,2461.2,1.01662]
[1730710946659,0.40659,2461.6,2461.5,0.40659]
[1730710946959,0.40661,2461.5,2461.4,0.4066]
[1730710947155,7.39895003,2461.7,2461.3,0.40662]
[1730710947156,0.40662,2461.4,2461.3,0.40662]
[1730710947355,0.83132,2461.4,2461.3,0.40662]
[1730710947866,3.6325,2461.4,2461.3,0.40662]
[1730710948368,3.2078,2461.7,2461.1,2.33066]
[1730710948656,0.86888,2461.6,2461.5,0.40658]
[1730710948858,0.40661,2461.5,2461.4,0.4066]
[1730710949065,0.40662,2461.4,2461.3,0.40662]
[1730710949263,4.04302,2461.4,2461.3,0.40662]
[1730710950068,3.6364,2461.4,2461.3,0.40662]
[1730710951355,4.04301,2461.4,2461.3,0.40662]
[1730710951561,6.81113003,2461.4,2461.1,0.4219]
[1730710951867,0.40665,2461.2,2461.1,0.82856]
[1730710952362,0.83325,2461.2,2461.1,0.82856]
[1730710953156,0.83325,2461.2,2461.1,0.40666]
[1730710954358,0.83325,2461.2,2460.8,1.50846245]
[1730710954359,1.01666,2461.1,2460.8,1.50846245]
[1730710954560,1.01666,2461.1,2460.7,1.59204367]
[1730710954561,0.40673,2460.8,2460.7,0.40672]
[1730710954757,3.61453,2460.8,2460.7,0.57331269]
[1730710954961,0.40673,2460.7,2460.6,0.40674]
[1730710955258,0.40676,2460.6,2460.5,0.40675]
[1730710955459,0.9122,2460.7,2460.4,0.9091]
[1730710955655,1.31895,2460.7,2460.6,0.40675]
[1730710956264,1.31893,2460.7,2460.6,0.40675]
[1730710956457,0.9122,2460.7,2460.6,0.40675]
[1730710956968,1.31893,2460.7,2460.6,0.40675]
[1730710958863,3.2078,2460.8,2460.4,1.92605]
[1730710959169,3.2078,2460.8,2460.4,0.9091]
[1730710959370,0.40673,2460.7,2460.6,0.40673]
[1730710961964,0.40673,2460.7,2460.4,0.9091]
[1730710961965,0.40676,2460.6,2460.5,0.40676]
[1730710962165,0.84666,2460.6,2460.4,0.9091]
[1730710962471,0.4068,2460.3,2460.2,3.2078]
[1730710962765,0.40678,2460.4,2460.3,0.40678]
[1730710963272,0.40679,2460.4,2460.3,0.40679]
[1730710963564,0.4341,2460.5,2460.3,0.40678]
[1730710963772,0.40678,2460.4,2460.3,0.40678]
[1730710965463,0.4341,2460.5,2460.2,3.2078]
[1730710965663,0.84087,2460.5,2460.4,0.40678]
[1730710965863,0.40678,2460.4,2460.3,0.40678]
[1730710966267,0.4399,2460.6,2460.5,0.40676]
[1730710966466,0.40674,2460.6,2460.5,0.40676]
[1730710969273,0.40676,2460.5,2460.4,0.453]
[1730710969574,0.4462,2460.6,2460.4,0.40677]
[1730710969775,0.84828,2460.5,2460.4,0.40677]
[1730710972876,0.4415,2460.5,2460.4,0.40677]
[1730710973270,0.84826,2460.5,2460.4,0.40677]
[1730710973574,3.654,2460.6,2460.2,1.44922]
[1730710973575,0.85295,2460.6,2460.5,0.40676]
[1730710973765,3.654,2460.6,2460.2,0.4322]
[1730710974080,0.40677,2460.5,2460.4,0.40677]
[1730710977971,4.06076,2460.6,2460.5,0.40676]
[1730710978173,0.40678,2460.5,2460.4,0.40677]
[1730710979279,3.61455,2460.6,2460.5,0.40676]
[1730710979679,0.40675,2460.6,2460.5,0.40676]
[1730710980576,4.51113003,2460.7,2460.2,1.44923]
[1730710980773,3.2078,2460.6,2460.2,1.44923]
[1730710980969,3.61456,2460.6,2460.5,0.40676]
[1730710981171,0.40676,2460.6,2460.5,0.40676]
[1730710981570,0.40676,2460.6,2460.2,1.44923]
[1730710981571,0.40677,2460.5,2460.4,0.40676]
[1730710983674,3.2078,2460.6,2460.3,0.40679]
[1730710983675,0.40679,2460.4,2460.3,0.40679]
[1730710983877,0.40677,2460.5,2460.4,0.40676]
[1730710984376,1.3364,2460.7,2460.6,0.40674]
[1730710984377,1.74314,2460.7,2460.6,0.40674]
[1730710985682,0.40673,2460.8,2460.7,0.40672]
[1730710986180,4.95733003,2460.9,2460.8,0.40671]
[1730710986385,4.55063003,2460.9,2460.6,0.4805]
[1730710986683,0.40672,2460.8,2460.7,0.40671]
[1730710987088,0.40674,2460.6,2460.5,0.84446]
[1730710987385,0.40677,2460.5,2460.4,0.40676]
[1730710987584,1.71927,2460.5,2460.4,0.40676]
[1730710989487,1.71926,2460.5,2460.4,0.40676]
[1730710989786,0.40671,2460.9,2460.8,0.4067]
[1730710989981,0.40672,2460.8,2460.7,0.40672]
[1730710990280,0.4067,2460.9,2460.8,0.4067]
[1730710991280,0.40672,2460.8,2460.7,0.40671]
[1730710991489,3.61452,2460.8,2460.7,0.40671]
[1730710991687,6.38253003,2460.8,2460.5,0.4482]
[1730710991881,0.40674,2460.6,2460.5,0.40675]
[1730710992094,0.40674,2460.6,2460.2,0.4786]
[1730710992095,3.17473003,2460.6,2460.3,0.40679]
[1730710992287,3.2078,2460.4,2460.2,0.9268]
[1730710992477,0.40679,2460.3,2459.9,1.01713]
[1730710992788,0.40679,2460.3,2460.2,0.40681]
[1730710992789,0.88279,2460.3,2460.2,0.40681]
[1730710993685,3.65073003,2460.3,2459.9,2.40423]
[1730710993892,0.40682,2460.2,2460.1,0.40681]
[1730710995595,3.65073003,2460.3,2459.9,1.96935]
[1730710995787,4.05753003,2460.3,2460.2,0.40681]
[1730710996988,0.40682,2460.2,2460.1,0.40681]
[1730710997488,3.65073003,2460.3,2459.9,1.96935]
[1730710997689,4.05754003,2460.3,2460.2,0.40681]
[1730710997996,4.05754003,2460.3,2460.1,0.40681]
[1730710997997,0.40681,2460.2,2460.1,0.40681]
[1730710998387,0.40686,2459.9,2459.8,0.40687]
[1730710998586,0.40686,2459.9,2459.8,0.98056377]
[1730710998888,0.40688,2459.8,2459.7,0.40688]
[1730710999092,3.6747,2459.9,2459.4,1.06136245]
[1730710999285,0.40691,2459.6,2459.5,0.40691]
[1730710999697,4.09793003,2459.7,2459.2,1.93364]
[1730710999896,4.50484003,2459.7,2459.6,0.40691]
[1730711000090,0.40691,2459.6,2459.5,0.40691]
[1730711000291,4.09793003,2459.7,2459.6,0.40691]
[1730711000292,4.50483003,2459.7,2459.6,0.40691]
[1730711000486,4.50483003,2459.7,2459.5,0.40692]
[1730711000487,4.09793003,2459.7,2459.5,0.40692]
[1730711000790,4.50484003,2459.7,2459.6,0.40691]
[1730711001287,0.40691,2459.6,2459.5,0.40692]
[1730711001888,3.61471,2459.6,2459.2,1.93364]
[1730711002294,3.61471,2459.6,2459.5,0.40692]
[1730711002694,3.61472,2459.6,2459.5,0.40692]
[1730711003098,3.61472,2459.6,2459.4,0.40693]
[1730711003502,3.61472,2459.6,2459.2,0.9162]
[1730711003797,0.40695,2459.4,2459.3,0.40695]
[1730711004495,0.4653,2459.5,2459.2,0.40696]
[1730711004699,0.4653,2459.5,2459.0,1.95302]
[1730711004700,3.6805,2459.3,2459.0,0.9355]
[1730711005295,0.40699,2459.1,2459.0,0.407]
[1730711005496,3.64733003,2459.2,2458.7,0.937]
[1730711005690,0.89331,2459.1,2458.7,0.937]
[1730711005890,0.4863,2459.1,2459.0,0.40701]
[1730711006095,0.89329,2459.1,2459.0,0.40701]
[1730711006395,0.4863,2459.1,2459.0,0.40701]
[1730711006895,3.2078,2459.6,2459.5,0.40692]
[1730711007099,3.61471,2459.6,2459.5,0.40692]
[1730711007297,3.58163003,2459.7,2459.5,0.40692]
[1730711007704,3.58163003,2459.7,2459.6,0.40691]
[1730711008009,3.17473003,2459.7,2459.6,0.40691]
[1730711008201,0.4069,2459.7,2459.4,0.40694]
[1730711008405,0.4069,2459.7,2459.6,0.40691]
[1730711008700,0.40689,2459.7,2459.6,0.40691]
[1730711009204,0.40689,2459.8,2459.7,0.40689]
[1730711009400,7.82273003,2459.9,2459.5,0.4847]
[1730711009401,8.22960003,2459.9,2459.5,0.4847]
[1730711009595,7.82273003,2459.9,2459.5,0.4847]
[1730711009795,0.4069,2459.7,2459.6,0.4069]
[1730711010395,0.4069,2459.7,2459.5,0.4847]
[1730711010396,7.82273003,2459.9,2459.5,0.4847]
[1730711010597,7.82273003,2459.9,2459.7,0.40688]
[1730711010598,0.40688,2459.8,2459.7,0.40688]
[1730711010799,7.82273003,2459.9,2459.8,0.40688]
[1730711011002,8.22959003,2459.9,2459.8,0.40688]
[1730711011197,12.29519003,2459.9,2459.8,0.40688]
[1730711012505,8.22959003,2459.9,2459.8,0.40688]
[1730711012707,12.29519003,2459.9,2459.8,0.40688]
[1730711013405,11.88833003,2459.9,2459.5,1.50202]
[1730711013608,0.40688,2459.8,2459.7,0.40688]
[1730711014014,8.22960003,2459.9,2459.8,0.40688]
[1730711014300,3.17473003,2460.1,2459.5,0.4847]
[1730711014505,4.5782,2460.2,2459.5,3.6925]
[1730711014707,1.77721,2460.2,2460.1,0.40683]
[1730711015011,1.3704,2460.2,2460.1,0.40683]
[1730711015304,1.77721,2460.2,2460.1,0.40683]
[1730711017307,4.54513003,2460.2,2459.9,0.4534]
[1730711017503,3.61464,2460.1,2460.0,0.40684]
[1730711017705,0.40684,2460.1,2460.0,0.40684]
[1730711018603,4.47164,2460.1,2460.0,0.40684]
[1730711018805,1.77721,2460.2,2460.1,0.40683]
[1730711019005,0.4609,2460.2,2460.1,0.40683]
[1730711019902,7.56353003,2460.4,2460.1,0.40683]
[1730711019903,5.21312003,2460.4,2460.1,0.40683]
[1730711020104,0.4068,2460.3,2460.2,0.8627]
[1730711020898,0.4506,2460.4,2460.3,0.40679]
[1730711021103,0.40675,2460.6,2460.5,0.40675]
[1730711021303,0.40674,2460.6,2460.4,0.87606]
[1730711021500,0.40674,2460.6,2460.5,0.40676]
[1730711022107,0.4506,2460.7,2460.4,0.4693]
[1730711022305,0.4506,2460.7,2460.6,0.40674]
[1730711022502,2.19771,2461.0,2460.4,1.48624]
[1730711022503,0.40668,2461.0,2460.4,3.6771]
[1730711022805,0.4506,2461.1,2461.0,0.40668]
[1730711023404,3.61446,2461.2,2460.8,1.01677]
[1730711023405,3.2078,2461.2,2461.1,0.40666]
[1730711023600,0.40666,2461.1,2461.0,0.40667]
[1730711024003,4.0632,2461.1,2460.9,0.9293]
[1730711024209,3.2078,2461.2,2460.5,0.8849]
[1730711024403,0.40668,2461.0,2460.9,0.40668]
[1730711024908,3.61445,2461.2,2460.7,0.40673]
[1730711025206,3.2078,2461.2,2460.7,0.40673]
[1730711025407,3.2078,2461.2,2461.1,0.40666]
[1730711026207,3.61444,2461.2,2461.1,0.40666]
[1730711026401,3.61444,2461.2,2460.9,0.4455]
[1730711026609,3.61444,2461.2,2461.1,0.40666]
[1730711026803,3.2078,2461.2,2461.1,0.40666]
[1730711027312,3.61444,2461.2,2461.1,0.40666]
[1730711028205,0.40667,2461.1,2461.0,0.40667]
[1730711028406,3.61445,2461.2,2461.0,0.40667]
[1730711028614,5.07986,2461.1,2460.6,0.4857]
[1730711028804,5.07986,2461.1,2460.1,4.22485]
[1730711028805,3.2078,2460.8,2460.1,4.22485]
[1730711029002,0.40677,2460.5,2460.2,0.922]
[1730711029209,0.40675,2460.6,2460.5,0.40676]
[1730711029611,4.59523003,2460.7,2460.3,0.40679]
[1730711029808,4.59523003,2460.7,2460.2,0.922]
[1730711030010,0.40675,2460.6,2460.4,0.40676]
[1730711030613,4.59523003,2460.7,2460.2,0.922]
[1730711030915,0.40677,2460.5,2460.3,0.40678]
[1730711031121,0.40675,2460.6,2460.4,0.40676]
[1730711031618,4.59523003,2460.7,2460.4,0.40676]
[1730711031619,0.40676,2460.5,2460.4,0.40676]
[1730711031809,0.40676,2460.6,2460.4,0.40676]
[1730711032120,2.24368,2461.1,2460.4,0.40676]
[1730711032121,3.2078,2461.2,2461.1,0.40666]
[1730711034910,3.2078,2461.2,2461.1,4.46986]
[1730711037421,0.40658,2461.7,2461.3,1.01657]
[1730711037610,0.40658,2461.7,2461.6,0.40656]
[1730711037807,3.6798,2461.8,2461.4,0.4521]
[1730711038116,0.87857,2461.8,2461.7,0.40656]
[1730711038619,0.40659,2461.7,2461.6,0.40657]
[1730711041413,0.472,2461.8,2461.4,0.4521]
[1730711041622,0.472,2461.8,2461.7,0.40656]
[1730711041623,0.87856,2461.8,2461.7,0.40656]
[1730711042308,0.87856,2461.8,2461.4,0.4521]
[1730711042309,0.472,2461.8,2461.4,0.4521]
[1730711042618,0.472,2461.8,2461.5,0.40659]
[1730711042619,0.40658,2461.6,2461.5,0.40659]
[1730711042815,0.472,2461.8,2461.4,0.4521]
[1730711043026,0.87855,2461.8,2461.7,0.40656]
[1730711043314,0.87855,2461.8,2461.4,0.4521]
[1730711043520,0.87855,2461.8,2461.7,0.40656]
[1730711044032,4.94095,2461.8,2461.7,0.40656]
[1730711044319,3.6798,2461.8,2461.7,0.40656]
[1730711044816,4.08635,2461.8,2461.7,0.40656]
[1730711045016,4.08636,2461.8,2461.6,0.40657]
[1730711045221,0.40657,2461.7,2461.6,0.40657]
[1730711045519,4.08636,2461.8,2461.5,0.4465]
[1730711045720,4.08636,2461.8,2461.7,0.40656]
[1730711046311,4.08636,2461.8,2461.5,0.4465]
[1730711046312,4.08636,2461.8,2461.6,0.40657]
[1730711046917,0.40656,2461.7,2461.6,0.40657]
[1730711047113,0.40658,2461.6,2461.5,0.40658]
[1730711047309,3.6798,2461.8,2461.1,1.46186]
[1730711047310,4.506,2461.7,2461.1,1.46186]
[1730711047511,4.506,2461.7,2461.2,0.40664]
[1730711047512,0.40664,2461.3,2461.2,0.40664]
[1730711050922,0.40665,2461.2,2461.1,0.40666]
[1730711052020,0.40665,2461.2,2460.9,0.40669]
[1730711052021,0.4067,2461.0,2460.9,0.40669]
[1730711052228,0.40667,2461.1,2461.0,0.40668]
[1730711053218,4.22438,2461.3,2460.7,1.01682]
[1730711053420,4.1109,2461.0,2460.5,4.1117]
[1730711053628,4.1109,2461.0,2460.9,0.4067]
[1730711053629,4.51759,2461.0,2460.9,0.4067]
[1730711054123,4.51759,2461.0,2460.6,1.01686]
[1730711054323,0.40671,2460.9,2460.8,0.4067]
[1730711055427,4.1109,2461.0,2460.5,5.12858]
[1730711055624,0.4739,2460.9,2460.5,4.1117]
[1730711055829,0.4739,2460.9,2460.6,0.40674]
[1730711055830,0.40675,2460.7,2460.6,0.40674]
[1730711056526,0.40675,2460.7,2460.5,3.2078]
[1730711056531,0.40675,2460.6,2460.5,3.2078]
[1730711056729,0.87815,2460.6,2460.5,3.61456]
[1730711057629,0.87815,2460.6,2460.5,0.40676]
[1730711058729,0.87815,2460.6,2460.3,0.40679]
[1730711058730,0.4068,2460.4,2460.3,0.40679]
[1730711059827,0.4651,2460.5,2460.1,1.01707]
[1730711060034,0.87187,2460.5,2460.4,0.40678]
[1730711060940,0.4651,2460.5,2460.4,0.40678]
[1730711061622,0.87186,2460.5,2460.4,0.40678]
[1730711061831,0.87187,2460.5,2460.4,0.40678]
[1730711062126,0.4651,2460.5,2460.3,0.4575]
[1730711062431,0.4068,2460.3,2460.2,0.40681]
[1730711062631,0.489,2460.4,2460.0,1.96262]
[1730711062824,0.89579,2460.4,2460.3,0.4068]
[1730711063336,0.40678,2460.4,2460.3,0.40678]
[1730711063723,0.4651,2460.5,2460.1,1.01708]
[1730711063929,0.4651,2460.5,2460.0,4.1533]
[1730711064126,0.4651,2460.5,2460.4,0.40678]
[1730711064327,4.08596,2460.6,2460.5,0.40676]
[1730711064729,3.6792,2460.6,2460.5,0.40676]
[1730711064929,4.08595,2460.6,2460.5,0.40676]
[1730711065227,3.6792,2460.6,2460.5,0.40676]
[1730711065427,0.4504,2461.0,2460.5,0.40676]
[1730711065630,0.4504,2461.0,2460.7,0.40671]
[1730711065631,0.40672,2460.8,2460.7,0.40671]
[1730711065835,3.61451,2460.9,2460.8,0.40671]
[1730711066227,3.61451,2460.9,2460.7,0.40672]
[1730711066228,0.40672,2460.8,2460.7,0.40672]
[1730711066539,0.40671,2460.8,2460.7,0.40673]
[1730711067830,3.2078,2460.9,2460.6,0.4371]
[1730711068337,3.2078,2460.9,2460.6,0.84384]
[1730711068338,0.40673,2460.7,2460.6,0.84384]
[1730711069039,0.40673,2460.7,2460.3,0.40679]
[1730711069040,0.40679,2460.4,2460.3,0.40679]
[1730711069233,0.4068,2460.3,2460.2,3.6146]
[1730711069433,1.45258,2460.6,2460.3,0.40679]
[1730711069434,0.4068,2460.4,2460.3,0.40679]
[1730711070629,0.85308,2460.5,2460.4,0.40678]
[1730711070832,0.84245,2460.6,2460.5,0.40676]
[1730711071034,0.40677,2460.5,2460.4,0.40676]
[1730711071337,0.4357,2460.6,2460.2,4.22483]
[1730711071537,0.40677,2460.5,2460.4,0.40677]
[1730711072035,0.40678,2460.4,2460.3,0.4068]
[1730711073938,0.40681,2460.3,2460.2,0.40681]
[1730711074143,0.40681,2460.2,2460.0,0.40684]
[1730711074335,0.40683,2460.1,2460.0,0.40684]
[1730711074534,3.6734,2460.2,2459.9,0.40686]
[1730711074535,0.40686,2460.0,2459.9,0.40686]
[1730711075237,0.40686,2459.9,2459.8,1.29216]
[1730711075436,0.40686,2459.9,2459.8,0.8853]
[1730711075635,0.40688,2459.9,2459.8,0.40687]
[1730711075842,0.9132,2460.1,2459.6,0.4726]
[1730711076040,0.40689,2459.8,2459.7,0.40688]
[1730711078933,3.2078,2459.9,2459.6,0.4726]
[1730711079143,7.39970003,2459.9,2459.4,0.4572]
[1730711079334,7.39970003,2459.9,2459.5,0.40691]
[1730711079335,0.40693,2459.6,2459.5,0.40691]
[1730711079635,0.40693,2459.6,2459.4,0.4572]
[1730711079636,0.40693,2459.5,2459.4,0.4572]
[1730711079830,0.40693,2459.5,2459.4,0.86414]
[1730711080633,0.40693,2459.5,2459.4,0.4572]
[1730711080834,0.40693,2459.5,2459.4,0.86414]
[1730711081343,0.40693,2459.6,2459.5,0.40692]
[1730711082236,0.40693,2459.5,2459.4,0.86413]
[1730711085337,0.8793,2459.7,2459.4,0.4572]
[1730711085543,0.4069,2459.8,2459.7,0.40688]
[1730711087140,0.40687,2459.9,2459.8,0.40688]
[1730711088946,6.38253003,2460.1,2459.6,0.4598]
[1730711089150,0.40685,2460.0,2459.9,0.40685]
[1730711089335,0.40687,2459.9,2459.8,0.40687]
[1730711089652,0.40686,2460.0,2459.8,0.40686]
[1730711090147,0.40686,2459.9,2459.8,0.40686]
[1730711090648,3.61466,2460.0,2459.9,0.40686]
[1730711090842,3.2078,2460.0,2459.9,0.40686]
[1730711091035,3.61464,2460.0,2459.9,0.40686]
[1730711091848,0.40686,2459.9,2459.8,1.30206]
[1730711092244,0.4069,2459.7,2459.6,0.4069]
[1730711092442,0.83929,2459.8,2459.6,0.40689]
[1730711092645,0.83929,2459.8,2459.7,0.40689]
[1730711093150,0.40689,2459.7,2459.6,0.4069]